bitfinex/quotes_SOLUSD_20240621
["timestamp","ask_amount","ask_price","bid_price","bid_amount"]
[1718966107572,6.6266,132.18,132.13,87.95]
[1718966107573,6.6266,132.18,132.15,51.68]
[1718966107885,15.7145,132.2,132.16,65.0]
[1718966108986,6.1921,132.22,132.17,28.8324]
[1718966109165,6.1921,132.22,132.18,93.9]
[1718966109365,6.1921,132.22,132.18,122.7323]
[1718966110390,6.1921,132.22,132.18,116.68]
[1718966111482,16.0373,132.23,132.18,116.68]
[1718966111681,6.1289,132.25,132.2,22.78]
[1718966111886,6.1289,132.25,132.21,65.0]
[1718966113376,6.1289,132.25,132.21,20.0]
[1718966113574,6.1289,132.25,132.19,43.12]
[1718966113780,6.1289,132.25,132.2,45.0]
[1718966114082,6.1289,132.25,132.21,20.0]
[1718966115972,6.1289,132.25,132.16,28.9]
[1718966116167,6.1289,132.25,132.17,20.0]
[1718966118091,6.1289,132.25,132.18,6.0519]
[1718966118287,6.1289,132.25,132.19,20.0]
[1718966118787,6.1289,132.25,132.2,45.0]
[1718966119376,6.1289,132.25,132.2,73.8312]
[1718966119574,6.1289,132.25,132.21,20.0]
[1718966121995,16.5813,132.26,132.22,45.0]
[1718966124272,16.5813,132.26,132.21,20.0]
[1718966126603,16.5813,132.26,132.22,45.0]
[1718966126987,16.5813,132.26,132.23,20.0]
[1718966129592,16.5813,132.26,132.23,20.0]
[1718966130885,16.5813,132.26,132.2,28.9]
[1718966131293,16.5813,132.26,132.21,20.0]
[1718966131478,16.5813,132.26,132.23,9.63]
[1718966132585,16.5813,132.26,132.24,9.63]
[1718966132785,16.5813,132.26,132.25,9.63]
[1718966138002,16.5813,132.26,132.21,20.0]
[1718966138202,16.5813,132.26,132.19,20.0]
[1718966138501,6.5048,132.25,132.18,20.0]
[1718966138708,16.1348,132.25,132.2,9.63]
[1718966139111,6.5048,132.25,132.2,9.63]
[1718966140197,6.5048,132.25,132.17,22.78]
[1718966140400,6.5048,132.25,132.23,9.63]
[1718966140595,6.5048,132.25,132.24,9.63]
[1718966141516,6.5048,132.25,132.19,28.88]
[1718966141722,6.5048,132.25,132.2,65.0]
[1718966142213,6.5048,132.25,132.2,20.0]
[1718966144091,6.5048,132.25,132.19,28.88]
[1718966144293,6.5048,132.25,132.16,28.88]
[1718966144499,6.5048,132.25,132.17,20.0]
[1718966145523,6.5048,132.25,132.15,20.0]
[1718966146104,6.5048,132.25,132.15,26.0535]
[1718966146307,6.5048,132.25,132.15,42.78]
[1718966146508,6.5048,132.25,132.17,34.9327]
[1718966146702,6.5048,132.25,132.18,20.0]
[1718966147326,6.5048,132.25,132.19,45.0]
[1718966147511,6.5048,132.25,132.2,20.0]
[1718966148520,6.5048,132.25,132.2,77.7111]
[1718966148697,6.5048,132.25,132.21,45.0]
[1718966148896,6.5048,132.25,132.2,48.88]
[1718966149313,6.5048,132.25,132.21,45.0]
[1718966151302,6.5048,132.25,132.2,20.0]
[1718966151518,6.5048,132.25,132.18,48.88]
[1718966152106,6.5048,132.25,132.18,54.9322]
[1718966152502,6.5048,132.25,132.19,6.0517]
[1718966152710,6.5048,132.25,132.2,65.0]
[1718966153411,6.5048,132.25,132.2,20.0]
[1718966153615,6.5048,132.25,132.19,26.0518]
[1718966153813,6.5048,132.25,132.2,45.0]
[1718966155220,6.5048,132.25,132.21,20.0]
[1718966160630,6.5048,132.25,132.18,28.88]
[1718966160830,6.5048,132.25,132.19,20.0]
[1718966161034,6.5048,132.25,132.16,48.8331]
[1718966161541,6.5048,132.25,132.16,42.78]
[1718966161847,6.5048,132.25,132.16,48.8332]
[1718966162315,6.5048,132.25,132.17,45.0]
[1718966162511,6.5048,132.25,132.18,20.0]
[1718966165937,6.5048,132.25,132.18,71.66]
[1718966166129,6.5048,132.25,132.19,45.0]
[1718966166328,6.5048,132.25,132.2,20.0]
[1718966170654,6.5048,132.25,132.19,45.0]
[1718966170655,6.5048,132.25,132.18,28.88]
[1718966170943,6.5048,132.25,132.19,20.0]
[1718966171519,6.5048,132.25,132.21,9.63]
[1718966171720,26.2113,132.26,132.1,15.006]
[1718966171721,6.2963,132.23,132.1,15.006]
[1718966171949,16.1342,132.22,132.17,9.63]
[1718966172347,16.1342,132.22,132.16,9.63]
[1718966172553,16.1342,132.22,132.12,20.0]
[1718966172725,16.1342,132.22,132.16,9.63]
[1718966173128,6.4468,132.21,132.1,6.056]
[1718966173427,6.4468,132.21,132.1,28.92]
[1718966173428,16.3347,132.19,132.1,28.92]
[1718966174952,6.618,132.18,132.11,20.0]
[1718966175139,6.618,132.18,132.1,28.92]
[1718966176336,6.618,132.18,132.11,20.0]
[1718966178734,6.618,132.18,132.1,28.92]
[1718966179250,6.618,132.18,132.07,34.9771]
[1718966179445,6.618,132.18,132.08,20.0]
[1718966182455,21.8166,132.15,132.05,28.92]
[1718966182642,21.8166,132.15,132.06,20.0]
[1718966182963,22.7372,132.14,132.06,20.0]
[1718966183253,45.0,132.13,132.05,28.92]
[1718966183836,45.0,132.13,132.02,40.94507392]
[1718966184955,45.0,132.13,132.03,65.0]
[1718966185761,45.0,132.13,132.01,28.92]
[1718966185762,100.0,132.11,132.01,28.92]
[1718966185939,22.6647,132.1,132.01,28.92]
[1718966186561,22.6647,132.1,132.0,0.8576981]
[1718966187264,45.0,132.09,132.0,0.8576981]
[1718966188251,45.0,132.09,132.0,20.8576981]
[1718966190363,6.1864,132.07,132.0,0.8576981]
[1718966190548,67.7443,132.06,132.0,0.8576981]
[1718966192058,167.7443,132.06,132.0,0.8576981]
[1718966192867,67.7443,132.06,132.0,0.8576981]
[1718966193367,22.7443,132.06,132.0,0.8576981]
[1718966193756,22.7443,132.06,132.0,20.8576981]
[1718966194255,22.7443,132.06,132.0,0.8576981]
[1718966194774,45.0,132.05,132.0,0.8576981]
[1718966195460,22.7443,132.06,132.0,0.8576981]
[1718966202881,45.0,132.05,132.0,0.8576981]
[1718966203977,22.7443,132.06,132.0,0.8576981]
[1718966211068,22.5988,132.09,132.01,28.92]
[1718966211364,22.5988,132.09,132.02,65.0]
[1718966212366,22.5988,132.09,132.02,20.0]
[1718966215893,16.4051,132.09,132.02,20.0]
[1718966216191,22.4031,132.12,132.02,20.0]
[1718966216383,45.0,132.11,132.02,20.0]
[1718966216770,22.4031,132.12,132.02,42.78]
[1718966216973,22.4031,132.12,132.03,45.0]
[1718966217172,22.4031,132.12,132.04,20.0]
[1718966217966,255.1,132.14,132.05,16.438]
[1718966218183,45.0,132.13,132.05,16.438]
[1718966220501,100.0,132.12,132.02,21.6928]
[1718966220681,67.9562,132.11,132.02,15.3699]
[1718966220880,67.9562,132.11,132.03,20.0]
[1718966222097,100.0,132.1,132.0,0.8576981]
[1718966222296,45.0,132.09,132.0,0.8576981]
[1718966223113,45.0,132.09,132.0,2.22561105]
[1718966223395,45.0,132.1,132.0,0.8576981]
[1718966224195,145.0,132.1,132.0,0.8576981]
[1718966226610,22.9562,132.11,132.0,0.8576981]
[1718966226789,22.9562,132.11,132.0,117.5576981]
[1718966227309,255.1,132.12,132.03,28.92]
[1718966227493,255.1,132.12,132.04,28.87021878]
[1718966227840,0.5,132.11,132.05,2.17731601]
[1718966228106,0.5,132.11,132.04,26.1927]
[1718966229285,0.5,132.13,132.04,26.1927]
[1718966230406,45.5,132.13,132.04,26.1927]
[1718966232823,145.5,132.13,132.04,26.1927]
[1718966234412,100.0,132.11,132.02,16.6296]
[1718966234734,6.6649,132.09,132.02,16.6296]
[1718966235013,61.9466,132.08,132.0,0.8576981]
[1718966235308,0.5,132.07,132.0,0.8576981]
[1718966241593,45.5,132.07,132.0,0.8576981]
[1718966242192,145.5,132.07,132.0,0.8576981]
[1718966243219,100.0,132.05,132.0,0.8576981]
[1718966243401,45.5,132.04,132.0,0.8576981]
[1718966246212,0.5,132.04,132.0,0.8576981]
[1718966246417,0.5,132.06,132.0,0.8576981]
[1718966248914,100.0,132.04,132.0,0.8576981]
[1718966249126,45.5,132.03,132.0,0.8576981]
[1718966249489,6.438,132.02,132.0,0.8576981]
[1718966249690,45.5,132.01,132.0,0.8576981]
[1718966254027,100.0,132.0,131.93,0.40308093]
[1718966254230,100.0,131.98,131.93,0.40308093]
[1718966254422,45.5,131.97,131.93,0.40308093]
[1718966261714,0.5,131.97,131.93,0.40308093]
[1718966261913,255.1,132.0,131.93,16.08118093]
[1718966261914,0.5,131.99,131.93,16.08118093]
[1718966263515,0.5,132.01,131.93,16.08118093]
[1718966263819,45.5,132.01,131.93,16.08118093]
[1718966264417,0.5,132.01,131.93,16.08118093]
[1718966266516,0.5,132.03,131.93,16.08118093]
[1718966266824,0.5,132.03,131.93,22.14488093]
[1718966267038,45.5,132.03,131.95,28.92]
[1718966267443,0.5,132.03,131.95,28.92]
[1718966268020,0.5,132.04,131.96,6.2322]
[1718966268937,0.5,132.04,131.98,28.92]
[1718966269143,255.1,132.05,131.99,20.0]
[1718966269322,6.5219,132.09,131.99,20.0]
[1718966269513,0.5,132.08,131.99,20.0]
[1718966270711,45.5,132.08,131.99,20.0]
[1718966270940,0.5,132.07,131.99,20.0]
[1718966274253,0.5,132.07,131.98,20.0]
[1718966275314,0.5,132.07,131.97,15.0239]
[1718966276617,100.5,132.07,131.97,15.0239]
[1718966276819,45.0,132.06,131.97,15.0239]
[1718966277022,0.5,132.05,131.97,15.0239]
[1718966284324,0.5,132.08,131.97,15.0239]
[1718966285254,0.5,132.08,131.99,28.92]
[1718966285454,45.5,132.08,132.0,20.0]
[1718966285627,0.5,132.07,132.0,20.0]
[1718966286549,0.5,132.08,132.0,20.0]
[1718966286944,0.5,132.08,132.0,28.92]
[1718966287651,0.5,132.09,132.0,28.92]
[1718966288040,0.5,132.09,132.01,20.0]
[1718966288239,0.5,132.09,132.02,15.1446]
[1718966288931,0.5,132.09,132.02,21.3284]
[1718966289137,261.3335,132.12,132.02,21.3284]
[1718966289138,0.5,132.11,132.03,48.92]
[1718966290732,45.5,132.11,132.03,48.92]
[1718966291136,0.5,132.11,132.03,48.92]
[1718966293847,0.5,132.11,132.04,0.17]
[1718966294048,0.5,132.13,132.06,28.92]
[1718966294836,0.5,132.13,132.07,20.0]
[1718966295037,0.5,132.14,132.07,36.6213]
[1718966295343,0.5,132.14,132.08,6.3229]
[1718966295551,0.5,132.16,132.08,6.3229]
[1718966296744,45.5,132.16,132.08,6.3229]
[1718966300555,45.5,132.16,132.07,36.6213]
[1718966300556,145.5,132.16,132.07,16.6213]
[1718966303762,45.5,132.16,132.07,16.6213]
[1718966304145,45.5,132.16,132.07,45.5413]
[1718966304349,0.5,132.16,132.08,26.2071]
[1718966305554,9.64,132.18,132.13,9.64]
[1718966305760,45.5,132.17,132.13,9.64]
[1718966305943,55.14,132.17,132.09,38.56]
[1718966306259,55.14,132.17,132.11,9.64]
[1718966307266,15.8371,132.15,132.07,16.6213]
[1718966307473,100.5,132.14,132.07,16.6213]
[1718966307681,45.0,132.13,132.05,6.0312]
[1718966307848,0.5,132.12,132.05,6.0312]
[1718966308343,0.5,132.12,132.04,15.8891]
[1718966311366,0.5,132.12,132.02,6.3229]
[1718966311559,15.0742,132.1,132.01,15.6988]
[1718966311772,45.5,132.09,132.01,15.6988]
[1718966320958,45.5,132.09,131.98,43.9725]
[1718966321159,45.5,132.09,131.99,20.0]
[1718966322453,45.5,132.09,131.99,48.841]
[1718966322648,0.5,132.09,132.01,28.96]
[1718966322971,0.5,132.09,132.02,22.9654109]
[1718966323152,0.5,132.09,132.03,2.96518629]
[1718966324559,0.5,132.12,132.03,2.96518629]
[1718966326558,45.5,132.12,132.03,2.96518629]
[1718966329355,9.66,132.1,132.05,9.66]
[1718966329556,0.5,132.09,132.03,2.96518629]
[1718966329760,6.218,132.08,132.04,9.66]
[1718966329967,0.5,132.07,132.04,9.66]
[1718966331286,0.5,132.07,132.03,2.96518629]
[1718966331472,15.7116,132.07,132.03,2.96518629]
[1718966331670,15.7116,132.07,132.03,12.62518629]
[1718966333360,15.7116,132.07,132.03,2.96518629]
[1718966333568,15.7116,132.07,132.03,12.62518629]
[1718966335583,15.7116,132.07,132.03,2.96518629]
[1718966335777,15.7116,132.07,132.03,12.62518629]
[1718966336877,15.7116,132.07,132.04,9.66]
[1718966337985,15.7116,132.07,132.03,12.62518629]
[1718966338762,15.7116,132.07,132.03,2.96518629]
[1718966339168,45.0,132.06,132.03,2.96518629]
[1718966339379,0.5,132.05,132.03,2.96518629]
[1718966339571,0.5,132.05,132.02,9.66]
[1718966340163,0.5,132.05,131.97,16.561]
[1718966340467,0.5,132.05,132.02,9.66]
[1718966341074,0.5,132.05,132.03,9.66]
[1718966341277,0.5,132.05,132.02,9.66]
[1718966341474,0.5,132.06,132.02,9.66]
[1718966341675,0.5,132.06,131.98,45.74630964]
[1718966341881,0.5,132.06,132.05,9.66]
[1718966342063,0.5,132.07,132.05,9.66]
[1718966342259,0.5,132.07,132.06,9.66]
[1718966342466,0.5,132.09,132.06,9.66]
[1718966343187,0.5,132.09,132.05,9.66]
[1718966343882,0.5,132.09,132.06,9.66]
[1718966344278,45.5,132.09,132.02,38.64]
[1718966344480,45.5,132.09,132.05,9.66]
[1718966346475,45.5,132.09,132.03,2.96518629]
[1718966346682,45.5,132.09,132.05,9.66]
[1718966347378,0.5,132.09,132.03,9.02418629]
[1718966347579,0.5,132.09,132.04,20.0]
[1718966347800,0.5,132.09,132.07,9.66]
[1718966350293,45.5,132.09,132.03,2.96518629]
[1718966350493,45.5,132.09,132.04,9.66]
[1718966350494,55.16,132.09,132.04,9.66]
[1718966350685,45.5,132.09,132.04,9.66]
[1718966351273,45.5,132.09,132.03,2.96518629]
[1718966351274,45.5,132.09,132.05,9.66]
[1718966351695,0.5,132.09,132.06,9.66]
[1718966353203,0.5,132.09,132.05,9.66]
[1718966353494,45.5,132.09,132.05,9.66]
[1718966354102,0.5,132.09,132.03,2.96518629]
[1718966354300,0.5,132.12,132.08,9.66]
[1718966354504,0.5,132.12,132.11,9.66]
[1718966354811,15.3727,132.13,132.11,9.66]
[1718966355099,6.3979,132.14,132.12,9.66]
[1718966355487,6.3979,132.14,132.07,28.94]
[1718966355684,0.5,132.15,132.08,20.0]
[1718966356000,0.5,132.15,132.08,26.0568]
[1718966356201,0.5,132.15,132.09,2.9638394]
[1718966356980,100.0,132.2,132.09,2.9638394]
[1718966357288,45.0,132.19,132.09,2.9638394]
[1718966359292,45.0,132.2,132.09,2.9638394]
[1718966359502,45.0,132.2,132.1,44.3451]
[1718966359808,177.7227,132.23,132.1,50.401]
[1718966359986,21.7572,132.22,132.11,22.96339071]
[1718966360302,21.7572,132.22,132.12,2.96316641]
[1718966362295,45.0,132.21,132.12,2.96316641]
[1718966362815,45.0,132.21,132.12,9.05536641]
[1718966362992,45.0,132.21,132.13,48.94]
[1718966363394,45.0,132.21,132.14,2.96271792]
[1718966363582,21.7572,132.22,132.14,2.96271792]
[1718966363784,15.1847,132.22,132.14,2.96271792]
[1718966364201,177.7227,132.23,132.16,28.94]
[1718966364416,6.3956,132.25,132.17,20.46493803]
[1718966364584,6.3956,132.25,132.17,20.0]
[1718966365492,15.7136,132.26,132.17,20.0]
[1718966366388,15.7136,132.26,132.18,2.96182135]
[1718966367588,45.0,132.25,132.18,2.96182135]
[1718966368513,145.0,132.25,132.18,2.96182135]
[1718966368801,145.0,132.25,132.15,15.2184]
[1718966369988,145.0,132.25,132.15,18.18089373]
[1718966370488,45.0,132.25,132.16,2.96226957]
[1718966371393,100.0,132.23,132.16,2.96226957]
[1718966371603,106.1048,132.23,132.16,2.96226957]
[1718966371804,45.0,132.22,132.16,2.96226957]
[1718966373602,21.9754,132.26,132.17,15.8919]
[1718966374110,21.9754,132.26,132.18,6.4535]
[1718966374420,121.7464,132.29,132.18,6.4535]
[1718966374597,21.7464,132.29,132.18,6.4535]
[1718966375004,121.7464,132.29,132.19,2.96159729]
[1718966375301,21.7464,132.29,132.19,2.96159729]
[1718966375496,9.63,132.27,132.21,9.63]
[1718966375700,9.63,132.27,132.19,2.96159729]
[1718966375898,9.63,132.27,132.21,9.63]
[1718966377116,45.0,132.26,132.21,9.63]
[1718966379020,45.0,132.24,132.19,2.96159729]
[1718966379993,100.0,132.23,132.19,2.96159729]
[1718966380199,45.0,132.22,132.19,2.96159729]
[1718966382508,45.0,132.22,132.14,15.9679]
[1718966385523,6.08450171,132.25,132.15,2.96249373]
[1718966385720,122.307,132.26,132.15,2.96249373]
[1718966386116,128.45911399,132.26,132.15,2.96249373]
[1718966386617,6.15211399,132.26,132.16,6.3907]
[1718966386797,115.934,132.29,132.18,15.1476]
[1718966387905,45.0,132.28,132.18,15.1476]
[1718966388146,115.934,132.29,132.18,15.1476]
[1718966388735,100.0,132.27,132.18,15.1476]
[1718966389838,45.0,132.26,132.18,15.1476]
[1718966391336,15.934,132.29,132.18,15.1476]
[1718966392515,15.934,132.29,132.19,2.96159729]
[1718966392713,45.0,132.28,132.19,2.96159729]
[1718966394635,145.0,132.28,132.19,2.96159729]
[1718966394810,100.0,132.26,132.19,2.96159729]
[1718966395010,45.0,132.25,132.19,2.96159729]
[1718966399919,100.0,132.24,132.18,15.1476]
[1718966400136,45.0,132.23,132.16,6.3907]
[1718966400325,100.0,132.22,132.16,6.3907]
[1718966400521,45.0,132.21,132.16,6.3907]
[1718966400843,45.0,132.23,132.16,6.3907]
[1718966402339,45.0,132.22,132.16,9.35296957]
[1718966402639,115.934,132.29,132.16,9.35296957]
[1718966402836,115.934,132.29,132.17,22.96204544]
[1718966403429,115.934,132.29,132.18,2.96182135]
[1718966403939,121.92689169,132.29,132.19,15.8903]
[1718966404723,5.99289169,132.29,132.19,15.8903]
[1718966404921,184.2766,132.3,132.19,15.8903]
[1718966405329,184.2766,132.3,132.2,2.96137327]
[1718966405823,100.0,132.29,132.2,2.96137327]
[1718966406155,45.0,132.28,132.2,2.96137327]
[1718966406446,100.0,132.27,132.2,2.96137327]
[1718966406640,45.0,132.26,132.2,2.96137327]
[1718966407638,283.85873302,132.3,132.21,6.287]
[1718966407993,177.7227,132.3,132.23,15.8903]
[1718966408122,6.1485,132.34,132.23,15.8903]
[1718966408327,100.0,132.31,132.24,2.96047751]
[1718966409131,122.76581935,132.33,132.24,2.96047751]
[1718966409659,100.0,132.31,132.24,2.96047751]
[1718966409826,45.0,132.3,132.24,2.96047751]
[1718966412852,0.8576981,132.33,132.26,15.1797]
[1718966413050,0.8576981,132.33,132.27,20.0]
[1718966413232,0.8576981,132.33,132.28,2.9595823]
[1718966416244,0.8576981,132.33,132.29,21.5321]
[1718966416451,0.8576981,132.33,132.3,20.0]
[1718966416940,0.8576981,132.33,132.29,21.5321]
[1718966417967,177.7227,132.42,132.31,15.5689]
[1718966418165,15.8172,132.44,132.32,26.2494]
[1718966418335,100.0,132.45,132.33,15.5689]
[1718966418658,100.0,132.45,132.34,20.0]
[1718966419046,105.97297355,132.45,132.34,20.0]
[1718966419436,100.0,132.45,132.34,20.0]
[1718966420043,100.0,132.45,132.35,2.95801697]
[1718966420635,45.0,132.44,132.35,2.95801697]
[1718966420832,100.0,132.45,132.35,2.95801697]
[1718966422373,45.0,132.44,132.35,2.95801697]
[1718966424061,45.0,132.44,132.36,22.007]
[1718966424253,0.8576981,132.46,132.36,22.007]
[1718966424565,0.8576981,132.46,132.37,20.0]
[1718966428272,45.8576981,132.46,132.38,2.95734663]
[1718966428660,45.8576981,132.46,132.39,15.9405]
[1718966431058,45.8576981,132.46,132.4,6.0188]
[1718966432170,0.8576981,132.46,132.4,6.0188]
[1718966433555,100.0,132.45,132.39,15.9405]
[1718966433755,45.0,132.44,132.39,15.9405]
[1718966439265,0.8576981,132.46,132.39,15.9405]
[1718966441580,45.8576981,132.46,132.39,15.9405]
[1718966446481,0.8576981,132.46,132.39,15.9405]
[1718966447889,45.8576981,132.46,132.39,15.9405]
[1718966448074,0.8576981,132.46,132.39,15.9405]
[1718966453390,45.8576981,132.46,132.39,15.9405]
[1718966456374,145.8576981,132.46,132.39,15.9405]
[1718966456598,145.8576981,132.46,132.37,6.1139]
[1718966456599,100.0,132.43,132.37,6.1139]
[1718966456765,45.0,132.42,132.37,6.1139]
[1718966458286,0.8576981,132.46,132.37,6.1139]
[1718966459882,45.8576981,132.46,132.37,6.1139]
[1718966460291,0.8576981,132.46,132.37,6.1139]
[1718966460532,0.8576981,132.46,132.4,16.2136]
[1718966460798,122.9564,132.54,132.41,6.1594]
[1718966460799,100.0,132.5,132.41,6.1594]
[1718966460993,100.0,132.5,132.43,21.1758]
[1718966461294,100.0,132.5,132.44,41.0566]
[1718966461497,100.0,132.5,132.44,35.0164]
[1718966463401,100.0,132.5,132.45,27.6255]
[1718966463588,66.6668,132.5,132.47,21.5859]
[1718966463797,66.6668,132.5,132.48,20.0]
[1718966464174,66.6668,132.5,132.47,21.5859]
[1718966465997,55.9016,132.5,132.48,20.0]
[1718966467391,55.9016,132.5,132.49,8.99299129]
[1718966467705,49.235,132.5,132.49,51.77299129]
[1718966467909,49.235,132.5,132.49,28.99299129]
[1718966468109,42.9493,132.5,132.49,28.99299129]
[1718966468396,42.9493,132.5,132.49,29.16299129]
[1718966469184,42.9493,132.5,132.49,52.11299129]
[1718966469586,42.9493,132.5,132.49,28.99299129]
[1718966470303,42.9493,132.5,132.49,97.11299129]
[1718966470496,42.9493,132.5,132.49,142.56299129]
[1718966471107,42.9493,132.5,132.49,151.09103332]
[1718966471406,42.9493,132.5,132.49,158.02395641]
[1718966471789,42.31584879,132.5,132.49,158.02395641]
[1718966472508,4.879e-05,132.5,132.49,151.0424096]
[1718966472807,4.879e-05,132.5,132.49,166.50337472]
[1718966473008,4.879e-05,132.5,132.49,166.33337472]
[1718966474608,4.879e-05,132.5,132.49,22.95489129]
[1718966474829,4.879e-05,132.5,132.49,28.99299129]
[1718966476318,4.879e-05,132.5,132.49,2.95489129]
[1718966487623,4.879e-05,132.5,132.42,20.0]
[1718966487803,4.879e-05,132.5,132.43,2.95623006]
[1718966491013,4.879e-05,132.5,132.43,22.95623006]
[1718966491305,4.879e-05,132.5,132.43,28.99703006]
[1718966492133,4.879e-05,132.5,132.43,22.95623006]
[1718966492511,4.879e-05,132.5,132.43,28.99693006]
[1718966493306,4.879e-05,132.5,132.45,6.0399]
[1718966493517,4.879e-05,132.5,132.46,22.95556052]
[1718966493811,4.879e-05,132.5,132.47,2.95533741]
[1718966496125,4.879e-05,132.5,132.47,22.95533741]
[1718966497415,4.879e-05,132.5,132.48,20.0]
[1718966497619,4.879e-05,132.5,132.47,2.95533741]
[1718966502105,4.879e-05,132.5,132.47,28.99433741]
[1718966502914,4.879e-05,132.5,132.47,22.95533741]
[1718966504812,4.879e-05,132.5,132.47,2.95533741]
[1718966505013,4.879e-05,132.5,132.48,20.0]
[1718966505328,4.879e-05,132.5,132.49,2.95489129]
[1718966507034,4.879e-05,132.5,132.49,8.99299129]
[1718966507234,4.879e-05,132.5,132.49,51.77299129]
[1718966507437,4.879e-05,132.5,132.49,97.11299129]
[1718966507614,4.879e-05,132.5,132.49,28.99299129]
[1718966507939,4.879e-05,132.5,132.49,22.95489129]
[1718966508325,4.879e-05,132.5,132.49,28.99299129]
[1718966509221,4.879e-05,132.5,132.49,51.77299129]
[1718966509538,4.879e-05,132.5,132.49,97.11299129]
[1718966510511,4.879e-05,132.5,132.49,142.56299129]
[1718966511116,4.879e-05,132.5,132.49,157.06686691]
[1718966511826,4.879e-05,132.5,132.49,167.04685791]
[1718966512309,4.879e-05,132.5,132.49,165.54628522]
[1718966512513,4.879e-05,132.5,132.49,175.52627622]
[1718966515234,4.879e-05,132.5,132.49,182.07642153]
[1718966516841,4.879e-05,132.5,132.49,172.09643053]
[1718966517034,4.879e-05,132.5,132.49,182.07642153]
[1718966518046,0.8576981,132.59,132.58,6.034]
[1718966518241,0.8576981,132.59,132.58,26.034]
[1718966518444,21.0997,132.65,132.59,6.0336]
[1718966518745,21.0997,132.65,132.6,20.0]
[1718966519223,21.0997,132.65,132.59,20.0]
[1718966519617,0.63313448,132.64,132.59,20.0]
[1718966519821,0.63313448,132.64,132.58,26.034]
[1718966520219,0.63313448,132.68,132.62,6.032]
[1718966520460,22.3464,132.69,132.63,26.0314]
[1718966520640,0.63313448,132.68,132.63,20.0]
[1718966520950,0.63313448,132.68,132.61,20.0]
[1718966521149,0.63313448,132.68,132.59,42.78]
[1718966521343,22.3464,132.69,132.63,6.0315]
[1718966521744,1.49083258,132.72,132.65,6.0306]
[1718966521932,1.49083258,132.72,132.66,20.0]
[1718966522325,1.49083258,132.72,132.66,26.0303]
[1718966522726,0.8576981,132.72,132.66,20.0]
[1718966522946,0.8576981,132.72,132.67,6.0297]
[1718966523253,0.3576981,132.72,132.68,20.0]
[1718966524664,0.99083258,132.72,132.68,20.0]
[1718966524951,0.99083258,132.72,132.66,20.0]
[1718966525149,0.3576981,132.72,132.65,20.0]
[1718966525351,0.3576981,132.72,132.68,6.0294]
[1718966525540,0.3576981,132.72,132.69,20.0]
[1718966526142,0.3576981,132.72,132.68,20.0]
[1718966526664,0.3576981,132.72,132.67,20.0]
[1718966528130,0.3576981,132.72,132.67,26.0299]
[1718966530257,0.99083258,132.72,132.67,20.0]
[1718966530433,0.99083258,132.72,132.66,26.0302]
[1718966530752,0.3576981,132.72,132.66,26.0302]
[1718966530949,0.3576981,132.72,132.66,20.0]
[1718966531335,0.3576981,132.72,132.63,43.87254948]
[1718966531336,0.3576981,132.72,132.64,42.78]
[1718966531540,0.99083258,132.72,132.64,42.78]
[1718966531845,0.99083258,132.72,132.66,6.0302]
[1718966532433,0.99083258,132.72,132.67,20.0]
[1718966533046,0.99083258,132.72,132.66,20.0]